[Event "European Women's Chess Championship (1-48)"]
[Site "Batumi, Georgia"]
[Date "2026.05.25"]
[Round "1.5"]
[White "Narva, Mai"]
[Black "Peycheva, Gergana"]
[Result "1-0"]
[TimeControl "90min/ 40moves+ 30min+ 30-sec increment from move 1"]
[WhiteTitle "-"]
[BlackTitle "-"]
[WhiteFideId "4500512"]
[BlackFideId "2916711"]
[WhiteElo "2426"]
[BlackElo "2186"]

1. e4 {[%clk 01:30:56]} {[%emt 00:00:03]} c6 {[%clk 01:30:53]} {[%emt
00:00:07]} 2. d4 {[%clk 01:31:06]} {[%emt 00:00:20]} d5 {[%clk 01:31:15]}
{[%emt 00:00:08]} 3. e5 {[%clk 01:31:20]} {[%emt 00:00:16]} c5 {[%clk
01:31:07]} {[%emt 00:00:37]} 4. Nf3 {[%clk 01:28:49]} {[%emt 00:03:01]} cxd4
{[%clk 01:29:36]} {[%emt 00:02:02]} 5. Qxd4 {[%clk 01:29:03]} {[%emt 00:00:16]}
Nc6 {[%clk 01:28:07]} {[%emt 00:01:59]} 6. Qf4 {[%clk 01:29:20]} {[%emt
00:00:13]} e6 {[%clk 01:26:14]} {[%emt 00:02:22]} 7. Bd3 {[%clk 01:28:09]}
{[%emt 00:01:41]} f6 {[%clk 01:15:11]} {[%emt 00:11:33]} 8. Qh4 {[%clk
01:15:30]} {[%emt 00:13:10]} f5 {[%clk 01:11:41]} {[%emt 00:04:00]} 9. Qg3
{[%clk 01:14:27]} {[%emt 00:01:32]} Nge7 {[%clk 00:59:50]} {[%emt 00:12:20]} 10.
h4 {[%clk 01:10:02]} {[%emt 00:04:55]} Qc7 {[%clk 00:53:38]} {[%emt 00:06:42]}
11. O-O {[%clk 01:03:06]} {[%emt 00:07:25]} Bd7 {[%clk 00:50:18]} {[%emt
00:03:50]} 12. Nc3 {[%clk 01:00:04]} {[%emt 00:03:32]} a6 {[%clk 00:46:41]}
{[%emt 00:04:07]} 13. Be3 {[%clk 00:58:49]} {[%emt 00:01:45]} O-O-O {[%clk
00:31:08]} {[%emt 00:16:03]} 14. Rfe1 {[%clk 00:42:17]} {[%emt 00:17:02]} Ng6
{[%clk 00:20:23]} {[%emt 00:11:15]} 15. Bg5 {[%clk 00:38:27]} {[%emt 00:04:20]}
Be7 {[%clk 00:16:39]} {[%emt 00:04:14]} 16. Bd2 {[%clk 00:23:17]} {[%emt
00:15:41]} Rdf8 {[%clk 00:11:01]} {[%emt 00:06:08]} 17. Qh2 {[%clk 00:22:21]}
{[%emt 00:01:26]} d4 {[%clk 00:07:03]} {[%emt 00:04:28]} 18. Nb1 {[%clk
00:20:26]} {[%emt 00:02:25]} Bc5 {[%clk 00:04:19]} {[%emt 00:03:15]} 19. a4
{[%clk 00:19:37]} {[%emt 00:01:19]} Kb8 {[%clk 00:02:26]} {[%emt 00:02:23]} 20.
Na3 {[%clk 00:14:41]} {[%emt 00:05:26]} Nge7 {[%clk 00:01:40]} {[%emt
00:01:15]} 21. Nc4 {[%clk 00:14:32]} {[%emt 00:00:39]} Nd5 {[%clk 00:01:35]}
{[%emt 00:00:35]} 22. a5 {[%clk 00:08:59]} {[%emt 00:06:02]} Rhg8 {[%clk
00:01:30]} {[%emt 00:00:35]} 23. Rab1 {[%clk 00:08:34]} {[%emt 00:00:55]} Ncb4
{[%clk 00:01:23]} {[%emt 00:00:37]} 24. Nd6 {[%clk 00:05:36]} {[%emt 00:03:28]}
Qxa5 {[%clk 00:01:06]} {[%emt 00:00:48]} 25. Nxf5 {[%clk 00:03:35]} {[%emt
00:02:31]} Qc7 {[%clk 00:00:46]} {[%emt 00:00:50]} 26. Nd6 {[%clk 00:01:22]}
{[%emt 00:02:44]} Nxd3 {[%clk 00:00:45]} {[%emt 00:00:31]} 27. cxd3 {[%clk
00:01:48]} {[%emt 00:00:04]} Qb6 {[%clk 00:00:34]} {[%emt 00:00:41]} 28. Rec1
{[%clk 00:01:04]} {[%emt 00:01:13]} Bb4 {[%clk 00:00:42]} {[%emt 00:00:22]} 29.
Nc4 {[%clk 00:00:42]} {[%emt 00:00:52]} Qa7 {[%clk 00:01:02]} {[%emt 00:00:10]}
30. Qg3 {[%clk 00:00:43]} {[%emt 00:00:30]} Bxd2 {[%clk 00:01:17]} {[%emt
00:00:15]} 31. Nfxd2 {[%clk 00:00:59]} {[%emt 00:00:14]} Nf4 {[%clk 00:01:35]}
{[%emt 00:00:11]} 32. Re1 {[%clk 00:01:00]} {[%emt 00:00:29]} Bc6 {[%clk
00:01:53]} {[%emt 00:00:12]} 33. Ne4 {[%clk 00:01:11]} {[%emt 00:00:20]} Bd5
{[%clk 00:01:09]} {[%emt 00:01:14]} 34. Ncd6 {[%clk 00:00:52]} {[%emt
00:00:49]} Qb6 {[%clk 00:01:06]} {[%emt 00:00:32]} 35. b4 {[%clk 00:00:53]}
{[%emt 00:00:29]} a5 {[%clk 00:00:34]} {[%emt 00:01:02]} 36. bxa5 {[%clk
00:00:54]} {[%emt 00:00:29]} Qxb1 {[%clk 00:00:46]} {[%emt 00:00:18]} 37. Rxb1
{[%clk 00:01:17]} {[%emt 00:00:07]} Ne2+ {[%clk 00:01:08]} {[%emt 00:00:08]} 38.
Kh2 {[%clk 00:01:42]} {[%emt 00:00:06]} Nxg3 {[%clk 00:01:33]} {[%emt
00:00:04]} 39. Kxg3 {[%clk 00:01:57]} {[%emt 00:00:15]} Kc7 {[%clk 00:00:37]}
{[%emt 00:01:26]} 40. Rc1+ {[%clk 00:00:53]} {[%emt 00:01:34]} Kb8 {[%clk
00:00:34]} {[%emt 00:00:33]} 41. Nc5 {[%clk 00:25:27]} {[%emt 00:05:56]} Rd8
{[%clk 00:13:09]} {[%emt 00:17:55]} 42. Rb1 {[%clk 00:24:54]} {[%emt 00:01:03]}
Ka8 {[%clk 00:11:00]} {[%emt 00:02:39]} 43. Rb4 {[%clk 00:22:09]} {[%emt
00:03:15]} g5 {[%clk 00:07:44]} {[%emt 00:03:46]} 44. h5 {[%clk 00:21:50]}
{[%emt 00:00:48]} Rg7 {[%clk 00:03:11]} {[%emt 00:05:03]} 45. Rxd4 {[%clk
00:21:30]} {[%emt 00:00:50]} Rc7 {[%clk 00:03:32]} {[%emt 00:00:09]} 46. Na4
{[%clk 00:20:22]} {[%emt 00:01:37]} Bc6 {[%clk 00:01:53]} {[%emt 00:02:09]} 47.
Nc3 {[%clk 00:16:32]} {[%emt 00:04:21]} h6 {[%clk 00:01:18]} {[%emt 00:01:05]}
48. Rc4 {[%clk 00:11:50]} {[%emt 00:05:12]} Rcd7 {[%clk 00:00:46]} {[%emt
00:01:02]} 49. a6 {[%clk 00:03:27]} {[%emt 00:08:52]} Ka7 {[%clk 00:01:09]}
{[%emt 00:00:07]} 50. axb7 {[%clk 00:03:26]} {[%emt 00:00:32]} Bxb7 {[%clk
00:00:41]} {[%emt 00:00:58]} 51. Ra4+ {[%clk 00:03:17]} {[%emt 00:00:38]} Kb6
{[%clk 00:00:40]} {[%emt 00:00:32]} 52. Rb4+ {[%clk 00:03:30]} {[%emt
00:00:17]} Ka6 {[%clk 00:00:34]} {[%emt 00:00:36]} 53. d4 {[%clk 00:01:48]}
{[%emt 00:02:11]} Bc6 {[%clk 00:00:52]} {[%emt 00:00:11]} 54. f3 {[%clk
00:01:38]} {[%emt 00:00:39]} Rc7 {[%clk 00:00:35]} {[%emt 00:00:48]} 55. Rb1
{[%clk 00:01:03]} {[%emt 00:01:06]} Rg7 {[%clk 00:00:41]} {[%emt 00:00:23]} 56.
Na2 {[%clk 00:01:09]} {[%emt 00:00:24]} Be8 {[%clk 00:00:33]} {[%emt 00:00:38]}
57. Nb4+ {[%clk 00:00:56]} {[%emt 00:00:43]} Kb6 {[%clk 00:00:36]} {[%emt
00:00:28]} 58. Nd5+ {[%clk 00:00:56]} {[%emt 00:00:30]} Kc6 {[%clk 00:01:01]}
{[%emt 00:00:04]} 59. Nf6 {[%clk 00:01:06]} {[%emt 00:00:19]} Bd7 {[%clk
00:01:19]} {[%emt 00:00:12]} 60. Rc1+ {[%clk 00:00:34]} {[%emt 00:01:04]} Kb6
{[%clk 00:01:32]} {[%emt 00:00:17]} 61. d5 {[%clk 00:00:45]} {[%emt 00:00:19]}
Re7 {[%clk 00:00:32]} {[%emt 00:01:29]} 62. Nxd7+ {[%clk 00:00:58]} {[%emt
00:00:17]} Rexd7 {[%clk 00:00:38]} {[%emt 00:00:25]} 63. dxe6 {[%clk 00:01:18]}
{[%emt 00:00:09]} Re7 {[%clk 00:00:31]} {[%emt 00:00:37]} 64. Rc8 {[%clk
00:01:14]} {[%emt 00:00:35]} 1-0

[Event "European Women's Chess Championship (1-48)"]
[Site "Batumi, Georgia"]
[Date "2026.05.25"]
[Round "1.6"]
[White "Zeliantsova, Kseniya"]
[Black "Ushenina, Anna"]
[Result "1/2-1/2"]
[TimeControl "90min/ 40moves+ 30min+ 30-sec increment from move 1"]
[WhiteTitle "-"]
[BlackTitle "-"]
[WhiteFideId "13512617"]
[BlackFideId "14110911"]
[WhiteElo "2176"]
[BlackElo "2420"]

1. e4 {[%clk 01:30:57]} {[%emt 00:00:02]} c5 {[%clk 01:30:34]} {[%emt
00:00:27]} 2. Nf3 {[%clk 01:31:20]} {[%emt 00:00:06]} Nc6 {[%clk 01:30:47]}
{[%emt 00:00:18]} 3. Bb5 {[%clk 01:31:37]} {[%emt 00:00:14]} e6 {[%clk
01:30:39]} {[%emt 00:00:38]} 4. O-O {[%clk 01:31:50]} {[%emt 00:00:16]} Nge7
{[%clk 01:30:39]} {[%emt 00:00:31]} 5. Re1 {[%clk 01:31:58]} {[%emt 00:00:22]}
h6 {[%clk 01:30:50]} {[%emt 00:00:20]} 6. c3 {[%clk 01:30:13]} {[%emt
00:02:15]} a6 {[%clk 01:30:22]} {[%emt 00:00:58]} 7. Bf1 {[%clk 01:30:03]}
{[%emt 00:00:39]} d5 {[%clk 01:30:31]} {[%emt 00:00:22]} 8. exd5 {[%clk
01:28:28]} {[%emt 00:02:05]} Nxd5 {[%clk 01:30:45]} {[%emt 00:00:16]} 9. d4
{[%clk 01:26:55]} {[%emt 00:02:03]} Nf6 {[%clk 01:29:48]} {[%emt 00:01:27]} 10.
dxc5 {[%clk 01:21:33]} {[%emt 00:05:52]} Qxd1 {[%clk 01:28:58]} {[%emt
00:01:20]} 11. Rxd1 {[%clk 01:21:59]} {[%emt 00:00:04]} Bxc5 {[%clk 01:29:13]}
{[%emt 00:00:14]} 12. Nbd2 {[%clk 01:18:59]} {[%emt 00:03:30]} Bd7 {[%clk
00:45:01]} {[%emt 00:44:42]} 13. h3 {[%clk 01:10:24]} {[%emt 00:09:04]} Rd8
{[%clk 00:41:41]} {[%emt 00:03:51]} 14. b4 {[%clk 00:55:59]} {[%emt 00:14:55]}
Be7 {[%clk 00:38:59]} {[%emt 00:03:11]} 15. Bb2 {[%clk 00:54:36]} {[%emt
00:01:53]} O-O {[%clk 00:36:39]} {[%emt 00:02:50]} 16. a4 {[%clk 00:49:29]}
{[%emt 00:05:36]} Bc8 {[%clk 00:33:20]} {[%emt 00:03:50]} 17. b5 {[%clk
00:40:21]} {[%emt 00:09:38]} Nb8 {[%clk 00:28:01]} {[%emt 00:05:48]} 18. c4
{[%clk 00:35:44]} {[%emt 00:05:07]} Nbd7 {[%clk 00:28:00]} {[%emt 00:00:32]} 19.
Nb3 {[%clk 00:33:27]} {[%emt 00:02:47]} Ne4 {[%clk 00:24:11]} {[%emt 00:04:19]}
20. Nfd2 {[%clk 00:16:57]} {[%emt 00:17:00]} Nxd2 {[%clk 00:18:49]} {[%emt
00:05:52]} 21. Rxd2 {[%clk 00:17:07]} {[%emt 00:00:19]} Nc5 {[%clk 00:17:43]}
{[%emt 00:01:36]} 22. Rxd8 {[%clk 00:17:03]} {[%emt 00:00:34]} Rxd8 {[%clk
00:18:08]} {[%emt 00:00:04]} 23. Nxc5 {[%clk 00:15:39]} {[%emt 00:01:54]} Bxc5
{[%clk 00:18:35]} {[%emt 00:00:04]} 24. Ba3 {[%clk 00:14:11]} {[%emt 00:01:58]}
Bxa3 {[%clk 00:08:58]} {[%emt 00:10:07]} 25. Rxa3 {[%clk 00:14:36]} {[%emt
00:00:05]} Kf8 {[%clk 00:09:01]} {[%emt 00:00:27]} 26. c5 {[%clk 00:11:40]}
{[%emt 00:03:26]} Ke7 {[%clk 00:08:05]} {[%emt 00:01:26]} 27. Rc3 {[%clk
00:06:10]} {[%emt 00:06:01]} axb5 {[%clk 00:04:22]} {[%emt 00:04:13]} 28. Bxb5
{[%clk 00:05:16]} {[%emt 00:01:23]} Rd1+ {[%clk 00:03:42]} {[%emt 00:01:10]} 29.
Kh2 {[%clk 00:05:42]} {[%emt 00:00:04]} Bd7 {[%clk 00:03:08]} {[%emt 00:01:04]}
30. c6 {[%clk 00:03:47]} {[%emt 00:02:25]} bxc6 {[%clk 00:02:33]} {[%emt
00:01:04]} 31. Bxc6 {[%clk 00:04:14]} {[%emt 00:00:03]} Bxc6 {[%clk 00:02:17]}
{[%emt 00:00:47]} 32. Rxc6 {[%clk 00:04:40]} {[%emt 00:00:03]} Ra1 {[%clk
00:01:52]} {[%emt 00:00:54]} 33. Ra6 {[%clk 00:02:40]} {[%emt 00:02:30]} h5
{[%clk 00:01:42]} {[%emt 00:00:41]} 34. h4 {[%clk 00:02:39]} {[%emt 00:00:31]}
Ra3 {[%clk 00:01:58]} {[%emt 00:00:14]} 35. g3 {[%clk 00:01:53]} {[%emt
00:01:17]} 1/2-1/2

[Event "European Women's Chess Championship (1-48)"]
[Site "Batumi, Georgia"]
[Date "2026.05.25"]
[Round "1.7"]
[White "Khotenashvili, Bella"]
[Black "Khurtsilava, Inga"]
[Result "1/2-1/2"]
[TimeControl "90min/ 40moves+ 30min+ 30-sec increment from move 1"]
[WhiteTitle "-"]
[BlackTitle "-"]
[WhiteFideId "13602640"]
[BlackFideId "13600419"]
[WhiteElo "2415"]
[BlackElo "2175"]

1. d4 {[%clk 01:30:55]} {[%emt 00:00:05]} Nf6 {[%clk 01:30:55]} {[%emt
00:00:05]} 2. Bg5 {[%clk 01:31:17]} {[%emt 00:00:08]} d5 {[%clk 01:28:26]}
{[%emt 00:02:59]} 3. Nd2 {[%clk 01:31:38]} {[%emt 00:00:09]} Nbd7 {[%clk
01:27:19]} {[%emt 00:01:37]} 4. e3 {[%clk 01:31:38]} {[%emt 00:00:29]} e5
{[%clk 01:26:19]} {[%emt 00:01:30]} 5. Ngf3 {[%clk 01:22:56]} {[%emt 00:09:12]}
e4 {[%clk 01:25:54]} {[%emt 00:00:55]} 6. Ne5 {[%clk 01:23:20]} {[%emt
00:00:07]} Be7 {[%clk 01:23:15]} {[%emt 00:03:08]} 7. Bf4 {[%clk 01:17:27]}
{[%emt 00:06:23]} Nxe5 {[%clk 01:20:32]} {[%emt 00:03:13]} 8. dxe5 {[%clk
01:12:46]} {[%emt 00:05:10]} Nd7 {[%clk 01:16:47]} {[%emt 00:04:15]} 9. Nb3
{[%clk 01:03:49]} {[%emt 00:09:28]} Nc5 {[%clk 01:13:17]} {[%emt 00:04:00]} 10.
Nd4 {[%clk 00:46:46]} {[%emt 00:17:33]} O-O {[%clk 01:08:29]} {[%emt 00:05:18]}
11. Qd2 {[%clk 00:41:50]} {[%emt 00:05:26]} Ne6 {[%clk 01:07:40]} {[%emt
00:01:18]} 12. O-O-O {[%clk 00:41:56]} {[%emt 00:00:24]} Nxd4 {[%clk 01:01:58]}
{[%emt 00:06:13]} 13. exd4 {[%clk 00:36:48]} {[%emt 00:05:38]} Bg4 {[%clk
00:59:21]} {[%emt 00:03:06]} 14. f3 {[%clk 00:33:04]} {[%emt 00:04:14]} exf3
{[%clk 00:57:45]} {[%emt 00:02:06]} 15. Re1 {[%clk 00:31:19]} {[%emt 00:02:15]}
c5 {[%clk 00:56:19]} {[%emt 00:01:56]} 16. gxf3 {[%clk 00:28:43]} {[%emt
00:03:06]} Bf5 {[%clk 00:55:41]} {[%emt 00:01:08]} 17. dxc5 {[%clk 00:23:46]}
{[%emt 00:05:28]} Rc8 {[%clk 00:55:30]} {[%emt 00:00:41]} 18. Bd3 {[%clk
00:23:51]} {[%emt 00:00:25]} Qd7 {[%clk 00:55:52]} {[%emt 00:00:08]} 19. Rhg1
{[%clk 00:18:35]} {[%emt 00:05:46]} g6 {[%clk 00:51:30]} {[%emt 00:04:52]} 20.
Bh6 {[%clk 00:15:55]} {[%emt 00:03:10]} Rfd8 {[%clk 00:45:41]} {[%emt
00:06:19]} 21. h4 {[%clk 00:13:20]} {[%emt 00:03:05]} Bxc5 {[%clk 00:37:11]}
{[%emt 00:09:00]} 22. Rg5 {[%clk 00:08:18]} {[%emt 00:05:32]} Bb4 {[%clk
00:24:38]} {[%emt 00:13:02]} 23. Qxb4 {[%clk 00:07:47]} {[%emt 00:01:03]} Bxd3
{[%clk 00:25:02]} {[%emt 00:00:06]} 24. Rg2 {[%clk 00:04:30]} {[%emt 00:03:47]}
Rc4 {[%clk 00:22:51]} {[%emt 00:02:41]} 25. Qa3 {[%clk 00:00:59]} {[%emt
00:04:01]} Bf5 {[%clk 00:21:32]} {[%emt 00:01:49]} 26. Rd2 {[%clk 00:00:47]}
{[%emt 00:00:43]} Rdc8 {[%clk 00:21:45]} {[%emt 00:00:16]} 27. c3 {[%clk
00:00:48]} {[%emt 00:00:30]} Rxh4 {[%clk 00:19:43]} {[%emt 00:02:32]} 28. Be3
{[%clk 00:00:44]} {[%emt 00:00:34]} Ra4 {[%clk 00:16:56]} {[%emt 00:03:17]} 29.
Qd6 {[%clk 00:01:03]} {[%emt 00:00:11]} Rxa2 {[%clk 00:16:20]} {[%emt
00:01:06]} 30. Rd4 {[%clk 00:01:24]} {[%emt 00:00:09]} Qb5 {[%clk 00:13:39]}
{[%emt 00:03:10]} 31. Qb4 {[%clk 00:01:47]} {[%emt 00:00:07]} Qc6 {[%clk
00:10:27]} {[%emt 00:03:42]} 32. Bh6 {[%clk 00:01:05]} {[%emt 00:01:13]} Re8
{[%clk 00:09:23]} {[%emt 00:01:34]} 33. Kd2 {[%clk 00:00:44]} {[%emt 00:00:52]}
Ra6 {[%clk 00:07:14]} {[%emt 00:02:39]} 34. f4 {[%clk 00:00:35]} {[%emt
00:00:39]} Rb6 {[%clk 00:07:05]} {[%emt 00:00:39]} 35. Qa3 {[%clk 00:01:04]}
{[%emt 00:00:01]} Qb5 {[%clk 00:06:49]} {[%emt 00:00:45]} 36. b4 {[%clk
00:00:40]} {[%emt 00:00:55]} Rc6 {[%clk 00:05:18]} {[%emt 00:02:01]} 37. Qa5
{[%clk 00:00:39]} {[%emt 00:00:31]} Qxa5 {[%clk 00:03:53]} {[%emt 00:01:55]} 38.
bxa5 {[%clk 00:01:08]} {[%emt 00:00:01]} Rc5 {[%clk 00:02:44]} {[%emt
00:01:39]} 39. Rb4 {[%clk 00:00:40]} {[%emt 00:00:58]} Rxa5 {[%clk 00:02:53]}
{[%emt 00:00:21]} 40. Rxb7 {[%clk 00:00:55]} {[%emt 00:00:15]} Ra2+ {[%clk
00:02:14]} {[%emt 00:01:08]} 41. Ke3 {[%clk 00:27:09]} {[%emt 00:04:17]} Rc8
{[%clk 00:30:40]} {[%emt 00:02:04]} 42. Rc1 {[%clk 00:24:52]} {[%emt 00:02:46]}
Rh2 {[%clk 00:29:36]} {[%emt 00:01:34]} 43. Bg5 {[%clk 00:24:59]} {[%emt
00:00:23]} Rh3+ {[%clk 00:29:10]} {[%emt 00:00:56]} 44. Kf2 {[%clk 00:23:07]}
{[%emt 00:02:22]} d4 {[%clk 00:26:45]} {[%emt 00:02:55]} 45. c4 {[%clk
00:22:53]} {[%emt 00:00:45]} d3 {[%clk 00:25:36]} {[%emt 00:01:38]} 46. Bf6
{[%clk 00:19:50]} {[%emt 00:03:32]} Rh2+ {[%clk 00:25:19]} {[%emt 00:00:47]} 47.
Kg3 {[%clk 00:19:24]} {[%emt 00:00:56]} Rc2 {[%clk 00:24:17]} {[%emt 00:01:31]}
48. Rd1 {[%clk 00:18:20]} {[%emt 00:01:35]} R2xc4 {[%clk 00:20:25]} {[%emt
00:04:22]} 49. Rxa7 {[%clk 00:15:10]} {[%emt 00:03:40]} R4c7 {[%clk 00:19:48]}
{[%emt 00:01:07]} 50. Ra6 {[%clk 00:04:03]} {[%emt 00:11:37]} h5 {[%clk
00:19:41]} {[%emt 00:00:36]} 51. Rd6 {[%clk 00:03:58]} {[%emt 00:00:36]} Kh7
{[%clk 00:09:42]} {[%emt 00:10:29]} 52. Ra1 {[%clk 00:03:55]} {[%emt 00:00:33]}
Rb7 {[%clk 00:06:37]} {[%emt 00:03:35]} 53. Ra4 {[%clk 00:02:11]} {[%emt
00:02:14]} Rd7 {[%clk 00:02:25]} {[%emt 00:04:41]} 54. Rad4 {[%clk 00:02:03]}
{[%emt 00:00:38]} Rb7 {[%clk 00:01:52]} {[%emt 00:01:03]} 55. Kf3 {[%clk
00:01:16]} {[%emt 00:01:18]} Rb3 {[%clk 00:01:28]} {[%emt 00:00:54]} 56. Rd8
{[%clk 00:01:16]} {[%emt 00:00:30]} Rbb8 {[%clk 00:00:52]} {[%emt 00:01:07]} 57.
Rxc8 {[%clk 00:01:02]} {[%emt 00:00:44]} Rxc8 {[%clk 00:01:16]} {[%emt
00:00:06]} 58. Ke3 {[%clk 00:01:06]} {[%emt 00:00:27]} h4 {[%clk 00:00:41]}
{[%emt 00:01:05]} 59. Bxh4 {[%clk 00:01:11]} {[%emt 00:00:24]} Kh6 {[%clk
00:01:08]} {[%emt 00:00:03]} 60. Rd8 {[%clk 00:00:59]} {[%emt 00:00:41]} Rxd8
{[%clk 00:01:19]} {[%emt 00:00:20]} 61. Bxd8 {[%clk 00:01:28]} {[%emt
00:00:02]} Kh5 {[%clk 00:01:40]} {[%emt 00:00:09]} 62. Bg5 {[%clk 00:01:42]}
{[%emt 00:00:16]} Kg4 {[%clk 00:02:02]} {[%emt 00:00:07]} 63. Bh6 {[%clk
00:01:54]} {[%emt 00:00:18]} Kg3 {[%clk 00:02:12]} {[%emt 00:00:21]} 64. Bg5
{[%clk 00:02:15]} {[%emt 00:00:09]} Kh3 {[%clk 00:01:53]} {[%emt 00:00:49]} 65.
Bh6 {[%clk 00:02:28]} {[%emt 00:00:16]} Kg4 {[%clk 00:00:55]} {[%emt 00:01:27]}
66. Bg5 {[%clk 00:02:52]} {[%emt 00:00:07]} Kg3 {[%clk 00:01:21]} {[%emt
00:00:05]} 67. Bh6 {[%clk 00:03:14]} {[%emt 00:00:07]} Kg2 {[%clk 00:01:17]}
{[%emt 00:00:34]} 68. Bg5 {[%clk 00:03:35]} {[%emt 00:00:08]} Kf1 {[%clk
00:00:45]} {[%emt 00:01:02]} 69. Kd2 {[%clk 00:03:02]} {[%emt 00:01:04]} Kf2
{[%clk 00:01:08]} {[%emt 00:00:07]} 70. Bh6 {[%clk 00:03:27]} {[%emt 00:00:04]}
Kf3 {[%clk 00:01:20]} {[%emt 00:00:18]} 71. Bg5 {[%clk 00:03:52]} {[%emt
00:00:05]} Ke4 {[%clk 00:00:00]} {[%emt 00:00:33]} 1/2-1/2

[Event "European Women's Chess Championship (1-48)"]
[Site "Batumi, Georgia"]
[Date "2026.05.25"]
[Round "1.8"]
[White "Starosta, Martyna"]
[Black "Arabidze, Meri"]
[Result "1/2-1/2"]
[TimeControl "90min/ 40moves+ 30min+ 30-sec increment from move 1"]
[WhiteTitle "-"]
[BlackTitle "-"]
[WhiteFideId "21818754"]
[BlackFideId "13604040"]
[WhiteElo "2175"]
[BlackElo "2409"]

1. e4 {[%clk 01:30:55]} {[%emt 00:00:05]} c5 {[%clk 01:30:54]} {[%emt
00:00:06]} 2. Nf3 {[%clk 01:31:20]} {[%emt 00:00:04]} e6 {[%clk 01:31:20]}
{[%emt 00:00:05]} 3. d4 {[%clk 01:31:44]} {[%emt 00:00:06]} cxd4 {[%clk
01:31:45]} {[%emt 00:00:05]} 4. Nxd4 {[%clk 01:32:10]} {[%emt 00:00:04]} a6
{[%clk 01:32:09]} {[%emt 00:00:06]} 5. Bd3 {[%clk 01:31:35]} {[%emt 00:01:05]}
Bc5 {[%clk 01:32:29]} {[%emt 00:00:09]} 6. Nb3 {[%clk 01:31:39]} {[%emt
00:00:27]} Ba7 {[%clk 01:32:54]} {[%emt 00:00:06]} 7. Qg4 {[%clk 01:31:12]}
{[%emt 00:00:56]} Nf6 {[%clk 01:33:12]} {[%emt 00:00:12]} 8. Qg3 {[%clk
01:31:20]} {[%emt 00:00:23]} d6 {[%clk 01:33:35]} {[%emt 00:00:07]} 9. Bg5
{[%clk 01:31:32]} {[%emt 00:00:18]} Nc6 {[%clk 01:32:49]} {[%emt 00:01:16]} 10.
Nc3 {[%clk 01:30:12]} {[%emt 00:01:51]} h6 {[%clk 01:32:40]} {[%emt 00:00:38]}
11. Bd2 {[%clk 01:28:05]} {[%emt 00:02:36]} Nh5 {[%clk 01:32:49]} {[%emt
00:00:20]} 12. Qg4 {[%clk 01:21:38]} {[%emt 00:06:58]} Nf6 {[%clk 01:32:55]}
{[%emt 00:00:24]} 13. Qg3 {[%clk 01:21:19]} {[%emt 00:00:49]} b5 {[%clk
01:33:12]} {[%emt 00:00:14]} 14. O-O {[%clk 01:16:23]} {[%emt 00:05:26]} Kf8
{[%clk 01:17:34]} {[%emt 00:16:07]} 15. Rad1 {[%clk 01:09:26]} {[%emt
00:07:28]} Ne5 {[%clk 01:12:47]} {[%emt 00:05:16]} 16. Kh1 {[%clk 00:56:10]}
{[%emt 00:13:46]} Bb7 {[%clk 01:09:32]} {[%emt 00:03:45]} 17. a3 {[%clk
00:43:10]} {[%emt 00:13:31]} Nxd3 {[%clk 01:04:53]} {[%emt 00:05:09]} 18. cxd3
{[%clk 00:36:52]} {[%emt 00:06:48]} Rc8 {[%clk 01:00:57]} {[%emt 00:04:26]} 19.
Rc1 {[%clk 00:35:33]} {[%emt 00:01:49]} Kg8 {[%clk 00:55:29]} {[%emt 00:05:58]}
20. Ne2 {[%clk 00:33:40]} {[%emt 00:02:23]} Rxc1 {[%clk 00:50:21]} {[%emt
00:05:38]} 21. Nbxc1 {[%clk 00:23:54]} {[%emt 00:10:16]} Kh7 {[%clk 00:47:19]}
{[%emt 00:03:31]} 22. Bc3 {[%clk 00:21:44]} {[%emt 00:02:40]} Bb6 {[%clk
00:37:41]} {[%emt 00:10:08]} 23. Qf3 {[%clk 00:18:34]} {[%emt 00:03:40]} Qe7
{[%clk 00:33:45]} {[%emt 00:04:26]} 24. Ng3 {[%clk 00:17:15]} {[%emt 00:01:49]}
Rc8 {[%clk 00:29:56]} {[%emt 00:04:19]} 25. Nce2 {[%clk 00:14:27]} {[%emt
00:03:18]} Nd7 {[%clk 00:28:24]} {[%emt 00:02:01]} 26. Nh5 {[%clk 00:08:32]}
{[%emt 00:06:25]} Ne5 {[%clk 00:24:42]} {[%emt 00:04:13]} 27. Qh3 {[%clk
00:08:18]} {[%emt 00:00:45]} Qg5 {[%clk 00:21:28]} {[%emt 00:03:44]} 28. f4
{[%clk 00:03:24]} {[%emt 00:05:24]} Qg4 {[%clk 00:21:52]} {[%emt 00:00:06]} 29.
fxe5 {[%clk 00:02:50]} {[%emt 00:01:04]} Qxe2 {[%clk 00:22:09]} {[%emt
00:00:13]} 30. Ng3 {[%clk 00:02:03]} {[%emt 00:01:18]} Qxd3 {[%clk 00:19:39]}
{[%emt 00:03:00]} 31. exd6 {[%clk 00:00:39]} {[%emt 00:01:54]} Bd4 {[%clk
00:08:15]} {[%emt 00:11:54]} 32. d7 {[%clk 00:00:35]} {[%emt 00:00:34]} Rd8
{[%clk 00:06:49]} {[%emt 00:01:55]} 33. Rf3 {[%clk 00:01:03]} {[%emt 00:00:01]}
Qd1+ {[%clk 00:03:12]} {[%emt 00:04:08]} 34. Rf1 {[%clk 00:01:32]} {[%emt
00:00:01]} Qd3 {[%clk 00:02:59]} {[%emt 00:00:43]} 35. Rf3 {[%clk 00:02:00]}
{[%emt 00:00:01]} Qb1+ {[%clk 00:00:41]} {[%emt 00:02:48]} 36. Rf1 {[%clk
00:02:28]} {[%emt 00:00:02]} Qd3 {[%clk 00:01:06]} {[%emt 00:00:05]} 1/2-1/2